Cogmind - Beta 11 X4 @@@ ROGUE MODE // 2021.05.22 @ 07:20:31 Player: Stryker Result: Self-destructed Performance ------------- Evolutions (7) 3500 Regions Visited (24) 4800 Robots Destroyed (206) 1030 Value Destroyed (7370) 7370 Prototype IDs (31) 620 Alien Tech Used (1) 200 Bonus (-487) -487 TOTAL SCORE: 17033 Bonus ------- High Alert Combat Kills 501 Follower Combat Kills 2043 Network Hubs Disabled 400 Met Data Miner 300 Met Imprinter 300 A7 Reached Mainframe 300 Friendly Fire -4331 Cogmind --------- Core Integrity 1198/1300 Matter 300/300 Energy 3/100 System Corruption 1% Temperature Cool (0) Movement Walking (107) Location -3/Research Parts ------- > --- POWER (1) -------- (None) > --- PROPULSION (5) --- Improved Titanium Leg Flexi-carbon Leg Myomer Leg Experimental Flexi-carbon Leg Experimental Flexi-carbon Leg > --- UTILITY (13) ----- Large Storage Unit Machine Analyzer Improved Signal Interpreter Advanced Core Analyzer Improved Transmission Jammer Improved Focal Shield Advanced Force Field Improved Hacking Suite Improved Hacking Suite Advanced Hacking Suite Improved System Shield > --- WEAPON (3) ------- Quantum Rifle Segregator > --- INVENTORY (15) --- Light Antimatter Reactor Flexi-carbon Leg Flexi-carbon Leg Flexi-carbon Leg Experimental Flexi-carbon Leg Experimental Flexi-carbon Leg Experimental Heat Sink Advanced Energy Well (500) Matter Compressor (121) Structural Scanner Improved Weapon Cycler Improved Phase Shifter Improved System Restoration Module Heavy Phase Cannon Mini Smartbomb Launcher Peak State ------------ > --- POWER ------------ Particle Reactor > --- PROPULSION ------- Improved Titanium Leg Flexi-carbon Leg Myomer Leg Experimental Flexi-carbon Leg Experimental Flexi-carbon Leg > --- UTILITY ---------- Large Storage Unit Machine Analyzer Improved Signal Interpreter Advanced Core Analyzer Improved Transmission Jammer Centrium Medium Armor Plating Centrium Medium Armor Plating Improved Focal Shield Improved Thermal Shield Improved Hacking Suite Improved Hacking Suite Advanced Hacking Suite Improved System Shield > --- WEAPON ----------- KE Penetrator KE Penetrator Railgun > --- INVENTORY -------- Experimental Flexi-carbon Leg Experimental Flexi-carbon Leg Experimental Heat Sink Advanced Energy Well Matter Compressor Structural Scanner Advanced Sensor Array Improved Weapon Cycler Improved Phase Shifter Improved System Restoration Module Quantum Rifle Heavy Phase Cannon Hypervelocity Gauss Rifle Mini Smartbomb Launcher Falx [Rating: 139] Favorites ----------- Power Quantum Reactor Engine Light Angular Momentum Engine Power Core Light Fission Core Reactor Quantum Reactor Propulsion Improved Carbon-fiber Leg Treads Light Treads Leg Improved Carbon-fiber Leg Wheel Wheel Utility Large Storage Unit Device Structural Scanner Storage Large Storage Unit Processor Improved Signal Interpreter Hackware System Shield Protection Centrium Medium Armor Plating Weapon KE Penetrator Energy Gun Plasma Rifle Energy Cannon Phase Cannon Ballistic Gun KE Penetrator Launcher Shock Bomb Launcher Impact Weapon Maul Slashing Weapon Falx Build | -11 -10 -9 -9 -8 -7 -7 -7 -6 -6 -6 -6 -6 -5 -5 -5 -5 -5 -5 -4 -4 -4 -4 -3 -3 ------- Run | Scr Mat Mat Sto Mat Fac Low Dat Pro Fac Low Low Zio Pro Fac Ext Cet Arc Hub Fac Upp Upp War Pro Res Slots Evolved 14 | . . 2 . 2 2 . . . 2 . . . . 2 . . . . 2 . . . . 2 Power . | . . . . . . . . . . . . . . . . . . . . . . . . . Propulsion 3 | . . 1 . 1 . . . . . . . . . . . . . . . . . . . 1 Utility 11 | . . 1 . 1 2 . . . 2 . . . . 2 . . . . 2 . . . . 1 Weapon . | . . . . . . . . . . . . . . . . . . . . . . . . . Parts Attached 332 | 1 12 22 11 26 17 9 1 9 37 11 10 4 2 30 32 11 7 17 17 5 4 1 14 22 Power 11 | . . 2 1 . 1 . . . 4 . . . . 1 . 1 . . . . . . 1 . Engine 6 | . . 2 1 . 1 . . . 2 . . . . . . . . . . . . . . . Core 3 | . . . . . . . . . 2 . . . . 1 . . . . . . . . . . Reactor 2 | . . . . . . . . . . . . . . . . 1 . . . . . . 1 . Propulsion 57 | . 6 10 3 9 1 2 . 1 10 1 . . . 1 3 . . . 5 . . . 1 4 Treads 2 | . 2 . . . . . . . . . . . . . . . . . . . . . . . Leg 51 | . . 10 3 9 1 2 . 1 10 1 . . . 1 3 . . . 5 . . . 1 4 Wheel 4 | . 4 . . . . . . . . . . . . . . . . . . . . . . . Hover . | . . . . . . . . . . . . . . . . . . . . . . . . . Flight . | . . . . . . . . . . . . . . . . . . . . . . . . . Utility 176 | 1 4 5 4 12 12 4 1 7 17 8 4 4 2 17 20 4 6 11 8 3 3 . 8 11 Device 107 | 1 1 . 1 6 9 3 1 6 8 5 2 2 2 10 12 1 4 7 4 3 3 . 8 8 Storage 13 | . 1 2 1 1 . 1 . . 3 . . . . 1 2 . . 1 . . . . . . Processor 8 | . 1 . . 2 1 . . . . . . . . 1 1 . . . 1 . . . . 1 Hackware 7 | . . . . . . . . . 2 . . . . 1 . . 2 . 2 . . . . . Protection 41 | . 1 3 2 3 2 . . 1 4 3 2 2 . 4 5 3 . 3 1 . . . . 2 Artifact . | . . . . . . . . . . . . . . . . . . . . . . . . . Weapon 88 | . 2 5 3 5 3 3 . 1 6 2 6 . . 11 9 6 1 6 4 2 1 1 4 7 Energy Gun 5 | . . 1 . . . . . . . . . . . 1 1 1 . . . . . . . 1 Energy Cannon 6 | . . . . . . . . . 1 . 1 . . 2 . . . 1 . 1 . . . . Ballistic Gun 51 | . 2 4 3 4 2 . . 1 4 1 4 . . 4 5 4 . 4 2 1 . 1 2 3 Ballistic Cannon . | . . . . . . . . . . . . . . . . . . . . . . . . . Launcher 7 | . . . . . . 2 . . . . . . . . 3 . . 1 . . . . 1 . Special Weapon . | . . . . . . . . . . . . . . . . . . . . . . . . . Impact Weapon 6 | . . . . 1 1 1 . . 1 1 1 . . . . . . . . . . . . . Slashing Weapon 13 | . . . . . . . . . . . . . . 4 . 1 1 . 2 . 1 . 1 3 Piercing Weapon . | . . . . . . . . . . . . . . . . . . . . . . . . . Special Melee Weapon . | . . . . . . . . . . . . . . . . . . . . . . . . . Unidentified Prototypes 11 | . . 1 . 1 . . . 1 2 . 1 1 . 1 . 3 . . . . . . . . Corrupted Parts 1 | . . . . . . . . 1 . . . . . . . . . . . . . . . . System Corruption 1 | . . . . . . . . 1 . . . . . . . . . . . . . . . . Parts Lost 40 | . 3 2 . 1 . 4 . 3 9 . . . . 1 1 . . 1 4 . . . 2 9 Power 4 | . . . . . . . . . 1 . . . . 1 . . . . . . . . 1 1 Propulsion 11 | . 2 . . . . 2 . . 3 . . . . . . . . . 3 . . . 1 . Utility 15 | . 1 1 . . . 2 . 2 3 . . . . . 1 . . 1 . . . . . 4 Weapon 10 | . . 1 . 1 . . . 1 2 . . . . . . . . . 1 . . . . 4 Highest Loss Streak 6 | . 2 1 . 1 . 3 . 3 4 . . . . 1 1 . . 1 3 . . . 1 6 Average Slot Usage (%) 98 | . 97 99 98 99 99 96 100 98 95 100 99 100 100 99 99 99 100 99 96 100 100 100 99 97 Engine 4 | . 14 11 11 9 7 7 7 7 4 6 6 6 6 4 . . . . . . . . . . Reactor 1 | . . . . . . . . . . . . . . . . 4 5 5 5 5 5 5 4 3 Leg 24 | . . 32 31 35 29 29 30 29 25 26 25 25 25 22 22 22 22 22 20 20 20 20 19 22 Device 14 | . 1 . 1 7 9 11 15 15 18 19 18 20 17 21 20 18 16 21 17 15 15 15 15 12 Storage 7 | . 14 13 13 9 7 7 7 7 8 6 6 6 6 6 5 5 5 5 5 5 5 5 5 4 Processor 8 | . 2 1 . 8 15 15 15 13 6 6 6 6 6 6 11 11 11 10 7 10 10 10 10 12 Hackware 8 | . . . . . . . . . 7 13 12 12 12 12 11 11 11 11 18 20 20 20 20 18 Protection 8 | . 8 17 18 10 12 7 7 6 7 6 6 4 6 5 5 8 10 5 7 10 10 10 10 8 Energy Cannon 1 | . . . . . . . . . 1 6 3 6 6 3 . . . 2 . 2 5 5 3 . Ballistic Gun 11 | . 28 21 21 18 9 7 7 8 9 2 8 6 6 5 10 14 11 12 11 7 6 5 8 9 Impact Weapon 1 | . . . . . 4 1 . . 1 3 2 6 6 1 . . . . . . . . . . Naked Turns . | . . . . . . . . . . . . . . . . . . . . . . . . . Heaviest Build 79 | 14 38 43 43 46 54 51 50 52 53 54 54 57 57 65 58 76 76 76 76 79 78 78 78 77 Greatest Support 111 | 20 40 51 44 64 64 64 64 64 69 74 74 74 74 76 88 83 83 83 84 84 84 84 86 111 Greatest Overweight (x) 3 | . 3 1 . . . . . . 1 . . . . . . . . . . . . . . . Average Overweight (x) . | . 1 . . . . . . . . . . . . . . . . . . . . . . . Largest Inventory Capacity 15 | 8 15 15 15 15 15 15 15 15 15 15 15 15 15 15 15 15 15 15 15 15 15 15 15 15 Average Capacity 14 | 8 10 15 15 15 15 15 15 15 15 15 15 15 15 15 15 15 15 15 15 15 15 15 15 15 Most Carried 15 | 8 14 15 15 15 15 15 12 15 15 15 15 15 15 15 15 15 15 15 15 15 15 15 15 15 Average Carried 14 | 6 8 14 14 14 14 12 12 12 14 15 14 14 14 14 14 14 14 15 14 15 15 15 14 14 Final Capacity 15 | 8 15 15 15 15 15 15 15 15 15 15 15 15 15 15 15 15 15 15 15 15 15 15 15 15 Final Carried 15 | 8 14 15 15 15 15 12 12 15 15 15 14 15 15 15 15 15 15 15 15 15 15 15 13 15 Class Distribution -------------------- 31% | Scavenger-Assassin 20% | Scavenger-Mutant 16% | Mutant 9% | Scavenger-Skirmisher 3% | Hacker-Assassin 3% | Commander-Tank 3% | Commander-Skirmisher Dominant Class ---------------- Mutant | -10/Materials Mutant | -9/Materials Mutant | -9/Storage Scavenger-Mutant | -8/Materials Scavenger-Assassin | -7/Factory Scavenger-Mutant | -7/Lower Caves Scavenger-Mutant | -7/Data Miner Scavenger-Mutant | -6/Proximity Caves Scavenger-Mutant | -6/Factory Scavenger-Assassin | -6/Lower Caves Scavenger-Assassin | -6/Lower Caves Scavenger-Assassin | -6/Zion Scavenger-Assassin | -5/Proximity Caves Scavenger-Assassin | -5/Factory Commander-Skirmisher | -5/Extension Commander-Tank | -5/Cetus Commander-Mutant | -5/Archives Scavenger-Skirmisher | -5/Hub_04(d) Hacker-Assassin | -4/Factory Scavenger-Assassin | -4/Upper Caves Scavenger-Assassin | -4/Upper Caves Scavenger-Mutant | -4/Warlord Scavenger-Skirmisher | -3/Proximity Caves Scavenger-Assassin | -3/Research Resources | -11 -10 -9 -9 -8 -7 -7 -7 -6 -6 -6 -6 -6 -5 -5 -5 -5 -5 -5 -4 -4 -4 -4 -3 -3 ----------- Run | Scr Mat Mat Sto Mat Fac Low Dat Pro Fac Low Low Zio Pro Fac Ext Cet Arc Hub Fac Upp Upp War Pro Res Matter Collected 8489 | 255 501 906 358 787 295 252 . 168 602 176 125 80 20 372 1322 181 101 474 445 50 70 . 442 507 Remotely . | . . . . . . . . . . . . . . . . . . . . . . . . . Salvage Created 9628 | 153 821 1016 551 555 409 419 . 238 810 235 48 . . 703 756 195 236 1130 633 43 . . 279 398 Parts 479 | 9 54 64 34 31 19 23 . 7 38 3 3 . . 29 33 5 8 49 33 3 . . 17 17 Haulers Intercepted 9 | . 1 2 1 2 . . . 1 1 . . . . . . . . 1 . . . . . . Recyclers Shooed 9 | . 3 . . 1 . . . . . . . . . 1 1 . . 1 1 . . . . 1 Parts Field Recycled . | . . . . . . . . . . . . . . . . . . . . . . . . . Retrieved Matter . | . . . . . . . . . . . . . . . . . . . . . . . . . Parts Self-Destructed 51 | . . . . . . 14 . 11 . 7 3 . . . . . . . . . . . 16 . Prevented 13 | . . . . . . 5 . 8 . . . . . . . . . . . . . . . . Kills | -11 -10 -9 -9 -8 -7 -7 -7 -6 -6 -6 -6 -6 -5 -5 -5 -5 -5 -5 -4 -4 -4 -4 -3 -3 ------- Run | Scr Mat Mat Sto Mat Fac Low Dat Pro Fac Low Low Zio Pro Fac Ext Cet Arc Hub Fac Upp Upp War Pro Res Combat Hostiles Destroyed 142 | . 13 21 16 8 5 13 . 2 13 1 2 . . 4 11 2 . 8 6 . . . 12 5 Melee 2 | . . . . . 2 . . . . . . . . . . . . . . . . . . . Guns 109 | . 13 21 16 8 3 2 . . 11 1 2 . . 3 9 2 . 2 6 . . . 5 5 Cannons 3 | . . . . . . . . . 2 . . . . 1 . . . . . . . . . . AOE 24 | . . . . . . 11 . 2 . . . . . . 2 . . 2 . . . . 7 . Classes Destroyed 17 | 3 5 4 . 1 1 . . . . 1 . . . . . . . 1 . 1 . . . . Worker 8 | 1 . . . . 1 . . . . . . . . 1 . . . 5 . . . . . . Builder 8 | . 1 . . . . . . . . . . . . 1 1 . . 3 2 . . . . . Tunneler 2 | 2 . . . . . . . . . . . . . . . . . . . . . . . . Hauler 9 | . 1 2 1 2 . . . 1 1 . . . . . . . . 1 . . . . . . Recycler 8 | 1 1 1 . . 1 . . . . . . . . 3 . . . 1 . . . . . . Mechanic 2 | . . 1 . . . . . . . . . . . . . . . . 1 . . . . . Operator 11 | . 1 . 1 . . . . . 1 . . . . . 1 . 7 . . . . . . . Watcher 13 | . 3 1 . 1 1 . . . 2 . . . . 2 . . . 3 . . . . . . Swarmer 37 | . . 3 7 . . 10 . . 4 . 2 . . . . 1 . . . . . . 10 . Grunt 62 | . 13 14 6 6 2 3 . 1 6 . . . . . 4 1 . 1 2 . . . . 3 Brawler 1 | . . 1 . . . . . . . . . . . . . . . . . . . . . . Duelist 5 | . . . . 1 . . . 1 . . . . . . . . . . 2 . . . . 1 Protector 2 | . . . . . . . . . . . . . . . . . . 2 . . . . . . Sentry 22 | . . 3 3 1 1 . . . 2 . . . . 2 6 . . 2 2 . . . . . Hunter 5 | . . . . . . . . . . 1 . . . . . . . 2 . . . . 2 . Programmer 8 | . . . . . 2 . . . 1 . . . . 2 1 . . 1 . . . . . 1 Samaritan 1 | . . . . . . . . . . . . . . . . . . . . 1 . . . . Thug 1 | . . . . . . . . . . . . . . . . . . 1 . . . . . . Guerrilla 1 | . . . . . . . . . . . . . . . . . . 1 . . . . . . Best Kill Streak 17 | 2 5 5 7 3 2 6 . 2 5 1 2 . . 4 4 1 2 17 5 . . . 7 3 Combat Bots Only 7 | . 5 5 7 3 1 6 . 2 4 1 2 . . 2 4 1 . 6 4 . . . 7 3 Max Kills in Single Turn 9 | 1 1 2 1 1 1 2 . 1 2 1 1 . . 2 2 1 1 9 1 1 . . 2 2 Gunslinging 1 | . . 1 . . . . . . . . . . . . . . . . . . . . . . Exploded 2 | . . . . . . 2 . 1 . . . . . . 2 . . 1 . . . . 2 . Melee 1 | . . . . . 1 . . . . . . . . . . . . . . . . . . . Uniques/NPCs Destroyed 1 | . . . . . . . . . . . . . . . . 1 . . . . . . . . A7 (-5/Cetus) Combat | -11 -10 -9 -9 -8 -7 -7 -7 -6 -6 -6 -6 -6 -5 -5 -5 -5 -5 -5 -4 -4 -4 -4 -3 -3 -------- Run | Scr Mat Mat Sto Mat Fac Low Dat Pro Fac Low Low Zio Pro Fac Ext Cet Arc Hub Fac Upp Upp War Pro Res Damage Taken 10997 | . 627 996 566 605 832 524 . 331 1266 125 189 . . 519 639 40 41 242 1361 . 45 . 764 1285 Core 1003 | . 84 129 54 29 70 33 . 17 159 22 . . . 23 74 5 21 18 75 . 23 . 65 102 Absorbed by Shields 806 | . . . . 24 241 85 . . . . . . . . 359 35 . . . . . . . 62 Core Remaining (%) 80 | 100 66 . 54 94 . . . 82 . . . . 78 . . . . 85 . . . . 85 . Volleys Fired 568 | 15 68 74 40 57 21 30 . 17 56 24 5 . . 16 43 5 3 21 25 5 . . 25 18 Largest 3 | 2 2 2 2 2 2 2 . 2 2 2 2 . . 3 3 3 3 3 3 1 . . 3 3 Hottest 164 | 60 46 48 46 50 50 50 . 50 93 95 58 . . 153 141 101 101 164 101 98 . . 164 160 Shots Fired 1142 | 30 136 148 80 114 39 41 . 26 109 33 10 . . 37 97 11 7 45 73 5 . . 48 53 Gun 1023 | 30 136 148 80 114 39 23 . 20 94 9 10 . . 24 84 11 7 34 73 . . . 34 53 Cannon 72 | . . . . . . . . . 15 24 . . . 13 1 . . 7 . 5 . . 7 . Launcher 47 | . . . . . . 18 . 6 . . . . . . 12 . . 4 . . . . 7 . Special . | . . . . . . . . . . . . . . . . . . . . . . . . . Kinetic 971 | 15 136 148 80 114 39 23 . 20 94 9 10 . . 24 55 11 7 34 73 . . . 34 45 Thermal 124 | 15 . . . . . . . . 15 24 . . . 13 30 . . 7 . 5 . . 7 8 Explosive 23 | . . . . . . . . . . . . . . . 12 . . 4 . . . . 7 . Electromagnetic 24 | . . . . . . 18 . 6 . . . . . . . . . . . . . . . . Robot Hit Streak 28 | 7 9 10 28 16 16 9 . 7 16 5 5 . . 9 12 8 3 9 13 . . . 17 9 Robot Miss Streak 7 | 2 3 3 1 4 6 7 . 2 4 4 3 . . 3 2 2 1 2 2 . . . 5 4 Penetration Max 2 | . . . . . . . . . . . . . . . 1 1 . 2 1 . . . . 1 Secondary Targets 14 | . 4 1 1 . . 1 . . 1 . 1 . . . 3 1 . . . . . . . 1 Max Gunslinging Chain 1 | . 1 1 1 . . 1 . . 1 . 1 . . . 1 1 . . . . . . . 1 Shots Hit Robots 799 | 21 87 98 57 78 40 25 . 15 75 14 8 . . 34 64 19 21 24 62 1 . . 20 36 Core Hits 382 | 5 31 40 24 25 11 22 . 12 43 3 5 . . 13 32 6 7 36 26 1 . . 21 19 Critical Kills 16 | . . . 1 1 2 . . . . . . . . 1 2 1 . 2 2 . . . 2 2 Critical Parts Destroyed 19 | . . . . . . 1 . . . . . . . . 1 . . 4 7 . . . 1 5 Critical Strikes 40 | . . . 1 1 2 1 . . . . . . . 2 6 1 . 6 10 . . . 3 7 Burn 3 | . . . . . . . . . . . . . . . 3 . . . . . . . . . Destroy 36 | . . . 1 1 1 1 . . . . . . . 2 3 1 . 6 10 . . . 3 7 Smash 1 | . . . . . 1 . . . . . . . . . . . . . . . . . . . Melee Attacks 127 | . . . . 1 19 1 . . 6 11 2 . 5 16 . 12 19 2 9 11 3 . 5 5 Thermal 3 | . . . . . . . . . . . . . . . . . . . . . . . . 3 Impact 49 | . . . . 1 19 1 . . 6 11 2 . 5 4 . . . . . . . . . . Slashing 75 | . . . . . . . . . . . . . . 12 . 12 19 2 9 11 3 . 5 2 Piercing . | . . . . . . . . . . . . . . . . . . . . . . . . . Sneak Attacks 30 | . . . . . 1 . . . . . . . . 4 . 12 10 . 2 1 . . . . Combat Hostiles . | . . . . . . . . . . . . . . . . . . . . . . . . . Follow-up Attacks . | . . . . . . . . . . . . . . . . . . . . . . . . . Damage Inflicted 24217 | 230 1265 1604 931 1220 914 988 . 507 1461 549 138 . . 1456 2543 1253 1980 3079 1426 118 . . 1704 851 Guns 13006 | 230 1265 1604 917 1220 491 317 . 230 1268 105 138 . . 471 1617 137 111 558 1121 . . . 355 851 Cannons 785 | . . . . . . . . . 162 137 . . . 311 . . . 104 . . . . 71 . Explosions 5568 | . . . . . . 671 . 277 . . . . . . 926 . . 2416 . . . . 1278 . Melee 4843 | . . . . . 423 . . . 31 307 . . . 674 . 1116 1869 . 305 118 . . . . Ramming 15 | . . . 14 . . . . . . . . . . . . . . 1 . . . . . . Kinetic 12232 | 120 1265 1604 917 1220 491 317 . 230 1268 105 138 . . 471 1122 137 111 558 1121 . . . 355 682 Thermal 1660 | 110 . . . . . 101 . . 162 137 . . . 311 495 . . 104 . . . . 71 169 Explosive 2544 | . . . . . . . . . . . . . . . 926 . . 340 . . . . 1278 . Electromagnetic 2923 | . . . . . . 570 . 277 . . . . . . . . . 2076 . . . . . . Impact 972 | . . . . . 423 . . . 31 307 . . . 211 . . . . . . . . . . Slashing 3871 | . . . . . . . . . . . . . . 463 . 1116 1869 . 305 118 . . . . Piercing . | . . . . . . . . . . . . . . . . . . . . . . . . . Highest Corruption 5 | . . . . . 4 4 4 5 1 1 1 1 . 1 3 3 3 5 . . . . . 1 Average Corruption 2 | . . . . . 1 4 4 4 1 1 1 1 . 1 2 3 3 3 . . . . . 1 Corruption Purged . | . . . . . . . . . . . . . . . . . . . . . . . . . Effects 94 | . . . . . 6 9 3 15 2 3 2 1 . 1 20 6 7 16 . . . . . 3 Message Errors 27 | . . . . . 4 2 1 6 . 2 1 . . . 3 1 2 3 . . . . . 2 Matter Fused 21 | . . . . . 1 2 1 3 . . . . . . 6 1 1 6 . . . . . . Heat Flow Errors 17 | . . . . . 1 . . 3 . . . . . . 5 1 3 4 . . . . . . Energy Discharges 15 | . . . . . . 2 1 . 2 1 . . . 1 3 1 1 2 . . . . . 1 Data Loss (minor) 12 | . . . . . . 2 . 2 . . 1 1 . . 3 2 . 1 . . . . . . Weapon Failures 2 | . . . . . . 1 . 1 . . . . . . . . . . . . . . . . Overload Shots . | . . . . . . . . . . . . . . . . . . . . . . . . . Overflow Damage 1914 | . . . . . 61 8 . 1 9 236 . . . 165 8 238 838 161 122 . . . 67 . Projectiles . | . . . . . . . . . . . . . . . . . . . . . . . . . Explosions 245 | . . . . . . 8 . 1 . . . . . . 8 . . 161 . . . . 67 . Melee 1669 | . . . . . 61 . . . 9 236 . . . 165 . 238 838 . 122 . . . . . Knockbacks 6 | . . . . . 2 . . . 1 2 . . . 1 . . . . . . . . . . Impact 6 | . . . . . 2 . . . 1 2 . . . 1 . . . . . . . . . . Kinetic . | . . . . . . . . . . . . . . . . . . . . . . . . . Secondary . | . . . . . . . . . . . . . . . . . . . . . . . . . Self-Inflicted Damage 87 | . . . . . . 3 . . . . . . . . . . . 60 . . . . 24 . Shots 3 | . . . . . . 1 . . . . . . . . . . . 1 . . . . 1 . Rammed . | . . . . . . . . . . . . . . . . . . . . . . . . . Targets Rammed 4 | . . . 3 . . . . . . . . . . . . . . 1 . . . . . . Kicked 4 | . . . 3 . . . . . . . . . . . . . . 1 . . . . . . Crushed . | . . . . . . . . . . . . . . . . . . . . . . . . . Highest Temperature 477 | . 42 350 90 477 186 59 . 250 132 . . . . 239 335 115 252 301 93 80 . . 121 259 Average Temperature 69 | . 14 98 24 105 28 33 . 75 55 . . . . 70 91 53 91 51 39 40 . . 22 96 Received Heat Transfer 2686 | . 363 516 159 291 208 117 . 99 432 . 12 . . 45 104 10 . 18 138 . 9 . . 165 Effects 10 | . . 3 . 5 . . . . . . . . . 1 . . . 1 . . . . . . Shutdowns 1 | . . 1 . . . . . . . . . . . . . . . . . . . . . . Energy Bleed 4 | . . 2 . 1 . . . . . . . . . . . . . 1 . . . . . . Interference 4 | . . . . 3 . . . . . . . . . 1 . . . . . . . . . . Damage (minor) 1 | . . . . 1 . . . . . . . . . . . . . . . . . . . . Siege Activations . | . . . . . . . . . . . . . . . . . . . . . . . . . Robots Corrupted 5 | . . . . . . . . . . . . . . . . . . 5 . . . . . . Combat Hostiles 4 | . . . . . . . . . . . . . . . . . . 4 . . . . . . Parts Fried 31 | . . . . . 4 . . 1 3 1 . . . . 3 1 . 18 . . . . . . Impact Corruptions 17 | . . . . . 3 . . . 1 11 . . . 2 . . . . . . . . . . Robots Melted . | . . . . . . . . . . . . . . . . . . . . . . . . . Combat Hostiles . | . . . . . . . . . . . . . . . . . . . . . . . . . Parts Melted 5 | . . . . . . . . . . . . . . . 3 2 . . . . . . . . Heat Transferred 2764 | 250 . . . . . 150 . . 222 185 . . . 200 1350 . . 111 . . . . 74 222 Parts Sabotaged 2 | . . . . . . . . . . . . . . . . . . . . . . . . 2 Parts Stolen . | . . . . . . . . . . . . . . . . . . . . . . . . . Parts Stripped . | . . . . . . . . . . . . . . . . . . . . . . . . . Power Chain Reactions 3 | . . . . . . 3 . . . . . . . . . . . . . . . . . . Missiles Intercepted . | . . . . . . . . . . . . . . . . . . . . . . . . . Alert | -11 -10 -9 -9 -8 -7 -7 -7 -6 -6 -6 -6 -6 -5 -5 -5 -5 -5 -5 -4 -4 -4 -4 -3 -3 ------- Run | Scr Mat Mat Sto Mat Fac Low Dat Pro Fac Low Low Zio Pro Fac Ext Cet Arc Hub Fac Upp Upp War Pro Res Peak Influence 1292 | 20 290 553 470 298 159 . . . 241 . . . . 117 481 548 399 1292 682 . . . . 544 Initial 632 | . 13 59 182 187 100 . . . 63 . . . . . 46 124 219 139 632 . . . . 135 Average 223 | 6 134 278 348 201 77 . . . 76 . . . . 43 275 404 365 225 603 . . . . 284 Maximum Alert Level 4 | . 1 2 2 1 . . . . 1 . . . . . 2 2 1 4 2 . . . . 2 Low Security (%) 55 | 100 83 36 18 34 100 . . . 98 . . . . 100 25 8 . 55 . . . . . 55 Level 1 26 | . 16 33 34 65 . . . . 1 . . . . . 58 30 100 41 2 . . . . . Level 2 18 | . . 29 46 . . . . . . . . . . . 16 60 . . 96 . . . . 43 Level 3 . | . . . . . . . . . . . . . . . . . . . . . . . . . Level 4 . | . . . . . . . . . . . . . . . . . . 1 . . . . . . Level 5 . | . . . . . . . . . . . . . . . . . . . . . . . . . High Security . | . . . . . . . . . . . . . . . . . . . . . . . . . Max Security . | . . . . . . . . . . . . . . . . . . . . . . . . . Squads Dispatched 30 | . 4 2 3 1 2 . . . 4 . . . . 3 2 . . 3 4 . . . . 2 Investigation 5 | . 2 1 . . . . . . 1 . . . . 1 . . . . . . . . . . Extermination 6 | . . . . . 1 . . . 1 . . . . 1 . . . 1 1 . . . . 1 Reinforcement 13 | . 2 1 1 1 1 . . . 2 . . . . 1 2 . . 2 . . . . . . Assault 6 | . . . 2 . . . . . . . . . . . . . . . 3 . . . . 1 Garrison . | . . . . . . . . . . . . . . . . . . . . . . . . . Intercept . | . . . . . . . . . . . . . . . . . . . . . . . . . Construction Impeded 2 | . . . . . . . . . . . . . . . 1 . . 1 . . . . . . Haulers Reinforced 2 | . . . . . . . . . 1 . . . . 1 . . . . . . . . . . Cargo Convoy Interrupts . | . . . . . . . . . . . . . . . . . . . . . . . . . Stealth | -11 -10 -9 -9 -8 -7 -7 -7 -6 -6 -6 -6 -6 -5 -5 -5 -5 -5 -5 -4 -4 -4 -4 -3 -3 --------- Run | Scr Mat Mat Sto Mat Fac Low Dat Pro Fac Low Low Zio Pro Fac Ext Cet Arc Hub Fac Upp Upp War Pro Res Distress Signals 16 | . 2 4 . 3 . . . . . . . . . 2 1 1 . 2 1 . . . . . Communications Jammed 55 | . . . . . . . . . . . . . . 31 1 . . 1 22 . . . . . Distress Signals 55 | . . . . . . . . . . . . . . 31 1 . . 1 22 . . . . . Times Spotted 324 | . 25 38 30 23 16 15 . 10 18 1 4 . . 11 34 12 24 19 14 . 1 . 14 15 Peak Tracking Total 20 | . 5 8 11 7 4 6 . 5 4 1 3 . . 3 6 5 2 20 5 . 1 . 5 6 Tactical Retreats 21 | . 2 1 . 3 4 2 . 1 2 . . . . 1 1 . . 1 . . 1 . . 2 Traps | -11 -10 -9 -9 -8 -7 -7 -7 -6 -6 -6 -6 -6 -5 -5 -5 -5 -5 -5 -4 -4 -4 -4 -3 -3 ------- Run | Scr Mat Mat Sto Mat Fac Low Dat Pro Fac Low Low Zio Pro Fac Ext Cet Arc Hub Fac Upp Upp War Pro Res Traps Triggered 5 | . 1 . 1 . . . . . 1 . . . . 1 . . . . . . . . . 1 Indirectly . | . . . . . . . . . . . . . . . . . . . . . . . . . Trap Hack Attempts . | . . . . . . . . . . . . . . . . . . . . . . . . . Triggered . | . . . . . . . . . . . . . . . . . . . . . . . . . Disarmed . | . . . . . . . . . . . . . . . . . . . . . . . . . Reprogrammed . | . . . . . . . . . . . . . . . . . . . . . . . . . Reused . | . . . . . . . . . . . . . . . . . . . . . . . . . Traps Extracted . | . . . . . . . . . . . . . . . . . . . . . . . . . Installed . | . . . . . . . . . . . . . . . . . . . . . . . . . Triggered 1 | . . . . . . 1 . . . . . . . . . . . . . . . . . . Machines | -11 -10 -9 -9 -8 -7 -7 -7 -6 -6 -6 -6 -6 -5 -5 -5 -5 -5 -5 -4 -4 -4 -4 -3 -3 ---------- Run | Scr Mat Mat Sto Mat Fac Low Dat Pro Fac Low Low Zio Pro Fac Ext Cet Arc Hub Fac Upp Upp War Pro Res Machines Disabled 31 | . 1 . . . . . . . 1 . . . . . 6 1 . 22 . . . . . . Max in Single Turn 16 | . 1 . . . . . . . 1 . . . . . 2 . . 16 . . . . . . Garrison Access 3 | . . . 1 . . . . . 1 . . . . . . . . 1 . . . . . . Network Hub 2 | . . . . . . . . . . . . . . . . . . 2 . . . . . . Machines Sabotaged . | . . . . . . . . . . . . . . . . . . . . . . . . . Garrisons Compromised . | . . . . . . . . . . . . . . . . . . . . . . . . . Overloaded Fab Kills . | . . . . . . . . . . . . . . . . . . . . . . . . . Fab Network Shutdowns 1 | . . . . . . . . . . . . . . . . . . . . . . . . 1 Hacking | -11 -10 -9 -9 -8 -7 -7 -7 -6 -6 -6 -6 -6 -5 -5 -5 -5 -5 -5 -4 -4 -4 -4 -3 -3 --------- Run | Scr Mat Mat Sto Mat Fac Low Dat Pro Fac Low Low Zio Pro Fac Ext Cet Arc Hub Fac Upp Upp War Pro Res Machines Accessed 59 | . 3 5 8 4 5 . 4 . 8 . . 1 . 4 2 1 1 7 3 . . . . 3 Terminals 36 | . 3 2 5 2 4 . . . 5 . . . . 3 2 1 . 6 2 . . . . 1 Fabricators 3 | . . . . . . . . . . . . . . 1 . . . . 1 . . . . 1 Repair Stations 6 | . . 1 2 1 1 . . . 1 . . . . . . . . . . . . . . . Recycling Units 1 | . . 1 . . . . . . . . . . . . . . . . . . . . . . Scanalyzers 2 | . . 1 . 1 . . . . . . . . . . . . . . . . . . . . Garrison Access 5 | . . . 1 . . . . . 2 . . . . . . . . 1 . . . . . 1 Total Hacks 220 | . 12 16 18 23 11 . 30 . 17 . . 7 . 13 10 2 1 27 21 . . . . 12 Successful 148 | . 5 9 12 19 6 . 30 . 5 . . 7 . 8 4 1 1 18 16 . . . . 7 Failed 71 | . 7 7 6 4 5 . . . 12 . . . . 5 6 1 . 9 4 . . . . 5 Catastrophic 6 | . . . . . 1 . . . 1 . . . . . 2 1 . 1 . . . . . . Database Lockouts 1 | . . . . . . . . . . . . . . . . . . . 1 . . . . . Manual 89 | . 10 8 6 6 5 . . . 10 . . . . 4 8 2 . 13 14 . . . . 3 Terminals 123 | . 12 9 12 7 8 . . . 12 . . . . 6 10 2 . 25 16 . . . . 4 Fabricators 18 | . . . . . . . . . . . . . . 7 . . . . 5 . . . . 6 Repair Stations 17 | . . 2 4 6 3 . . . 2 . . . . . . . . . . . . . . . Recycling Units 2 | . . 2 . . . . . . . . . . . . . . . . . . . . . . Scanalyzers 13 | . . 3 . 10 . . . . . . . . . . . . . . . . . . . . Garrison Access 9 | . . . 2 . . . . . 3 . . . . . . . . 2 . . . . . 2 Terminal Hacks 76 | . 2 2 3 1 1 . 30 . 1 . . 7 . 1 3 1 1 12 9 . . . . 2 Record 12 | . . . . . . . 11 . . . . . . . . . 1 . . . . . . . Part Schematic 18 | . 1 . . . . . 8 . . . . 7 . . . . . 1 1 . . . . . Robot Schematic 8 | . . . . . . . 8 . . . . . . . . . . . . . . . . . Robot Analysis 1 | . . . . . . . . . . . . . . . . . . 1 . . . . . . Prototype ID Bank 8 | . 1 2 . . . . 3 . . . . . . . . . . 2 . . . . . . Open Door 3 | . . . 2 . . . . . . . . . . . . 1 . . . . . . . . Branch Access Points 4 | . . . . . 1 . . . 1 . . . . 1 . . . . 1 . . . . . Machine Index 2 | . . . . . . . . . . . . . . . . . . . 1 . . . . 1 Alert Level 2 | . . . . . . . . . . . . . . . 1 . . 1 . . . . . . Unreport Threat 5 | . . . . . . . . . . . . . . . 2 . . . 3 . . . . . Locate Traps 5 | . . . . 1 . . . . . . . . . . . . . 2 1 . . . . 1 Dispatch Records 1 | . . . . . . . . . . . . . . . . . . 1 . . . . . . Recall Extermination 1 | . . . . . . . . . . . . . . . . . . . 1 . . . . . Hauler Manifests 1 | . . . . . . . . . . . . . . . . . . 1 . . . . . . Zone Layout 5 | . . . 1 . . . . . . . . . . . . . . 3 1 . . . . . Fabricator Hacks 13 | . . . . . . . . . . . . . . 5 . . . . 5 . . . . 3 Load Schematic 6 | . . . . . . . . . . . . . . 3 . . . . 2 . . . . 1 Build 7 | . . . . . . . . . . . . . . 2 . . . . 3 . . . . 2 Repair Station Hacks 16 | . . 2 4 6 2 . . . 2 . . . . . . . . . . . . . . . Scan Component 8 | . . 1 2 3 1 . . . 1 . . . . . . . . . . . . . . . Repair 8 | . . 1 2 3 1 . . . 1 . . . . . . . . . . . . . . . Recycling Unit Hacks . | . . . . . . . . . . . . . . . . . . . . . . . . . Scanalyzer 12 | . . 2 . 10 . . . . . . . . . . . . . . . . . . . . Insert Component 5 | . . 1 . 4 . . . . . . . . . . . . . . . . . . . . Analyze 7 | . . 1 . 6 . . . . . . . . . . . . . . . . . . . . Garrison Access Hacks 3 | . . . 1 . . . . . 1 . . . . . . . . 1 . . . . . . Seal Access 3 | . . . 1 . . . . . 1 . . . . . . . . 1 . . . . . . Unauthorized Hacks 28 | . 3 3 4 2 3 . . . 1 . . . . 2 1 . . 5 2 . . . . 2 Terminals 27 | . 3 3 4 2 3 . . . 1 . . . . 2 1 . . 5 2 . . . . 1 Track 10 | . 1 1 2 . 1 . . . . . . . . . 1 . . 3 1 . . . . . Botnet 17 | . 2 2 2 2 2 . . . 1 . . . . 2 . . . 2 1 . . . . 1 Fabricators 1 | . . . . . . . . . . . . . . . . . . . . . . . . 1 Siphon 1 | . . . . . . . . . . . . . . . . . . . . . . . . 1 Repair Stations . | . . . . . . . . . . . . . . . . . . . . . . . . . Recycling Units . | . . . . . . . . . . . . . . . . . . . . . . . . . Scanalyzers . | . . . . . . . . . . . . . . . . . . . . . . . . . Garrison Access . | . . . . . . . . . . . . . . . . . . . . . . . . . Data Cores Recovered 1 | . . . . . . . . . . . . . . . 1 . . . . . . . . . Used . | . . . . . . . . . . . . . . . . . . . . . . . . . Hacking Detections 41 | . 3 4 4 4 5 . . . 6 . . . . 3 2 . . 5 2 . . . . 3 Full Trace Events 5 | . 1 1 . 1 . . . . 1 . . . . 1 . . . . . . . . . . Feedback Events . | . . . . . . . . . . . . . . . . . . . . . . . . . Feedback Blocked . | . . . . . . . . . . . . . . . . . . . . . . . . . Robot Schematics Acquired 8 | . . . . . . . 8 . . . . . . . . . . . . . . . . . Robots Built . | . . . . . . . . . . . . . . . . . . . . . . . . . Matter . | . . . . . . . . . . . . . . . . . . . . . . . . . Time . | . . . . . . . . . . . . . . . . . . . . . . . . . Total Robot Build Rating . | . . . . . . . . . . . . . . . . . . . . . . . . . Part Schematics Acquired 23 | . 1 1 . 4 . . 8 . . . . 7 . . . . . 1 1 . . . . . Parts Built 7 | . . . . . . . . . . . . . . 2 . . . . 3 . . . . 2 Matter 1926 | . . . . . . . . . . . . . . 464 . . . . 848 . . . . 614 Time 650 | . . . . . . . . . . . . . . 242 . . . . 222 . . . . 186 Total Part Build Rating 40 | . . . . . . . . . . . . . . 9 . . . . 17 . . . . 14 Parts Repaired 8 | . . 1 2 3 1 . . . 1 . . . . . . . . . . . . . . . Time 304 | . . 38 76 114 38 . . . 38 . . . . . . . . . . . . . . . Parts Recycled . | . . . . . . . . . . . . . . . . . . . . . . . . . Recycled Matter . | . . . . . . . . . . . . . . . . . . . . . . . . . Retrieved Matter . | . . . . . . . . . . . . . . . . . . . . . . . . . Retrieved Components . | . . . . . . . . . . . . . . . . . . . . . . . . . Parts Scanalyzed 5 | . . 1 . 4 . . . . . . . . . . . . . . . . . . . . Part Schematics Acquired 5 | . . 1 . 4 . . . . . . . . . . . . . . . . . . . . Parts Damaged . | . . . . . . . . . . . . . . . . . . . . . . . . . Bothacking | -11 -10 -9 -9 -8 -7 -7 -7 -6 -6 -6 -6 -6 -5 -5 -5 -5 -5 -5 -4 -4 -4 -4 -3 -3 ------------ Run | Scr Mat Mat Sto Mat Fac Low Dat Pro Fac Low Low Zio Pro Fac Ext Cet Arc Hub Fac Upp Upp War Pro Res Used RIF Installer . | . . . . . . . . . . . . . . . . . . . . . . . . . Robots Hacked . | . . . . . . . . . . . . . . . . . . . . . . . . . Non-combat . | . . . . . . . . . . . . . . . . . . . . . . . . . Combat . | . . . . . . . . . . . . . . . . . . . . . . . . . Robot Hacks Applied . | . . . . . . . . . . . . . . . . . . . . . . . . . Relay Couplers Released 4 | . . . . . . . . . . . . . . . . . . . . . . . . 4 Programmers 4 | . . . . . . . . . . . . . . . . . . . . . . . . 4 Robots Rewired 22 | . . . . . . . . . . . . . . . 22 . . . . . . . . . Allies Hacked 3 | . . . . . . . . . . . . . . . 3 . . . . . . . . . Hacks Repelled . | . . . . . . . . . . . . . . . . . . . . . . . . . Allies | -11 -10 -9 -9 -8 -7 -7 -7 -6 -6 -6 -6 -6 -5 -5 -5 -5 -5 -5 -4 -4 -4 -4 -3 -3 -------- Run | Scr Mat Mat Sto Mat Fac Low Dat Pro Fac Low Low Zio Pro Fac Ext Cet Arc Hub Fac Upp Upp War Pro Res Total Allies 30 | . . . 2 . . . . 1 . . . . . . 27 . . . . . . . . . Largest Group 21 | . . . 2 1 . . . 1 1 . . . . . 21 18 12 9 . . . . . . Highest-Rated Group 711 | . . . 62 31 . . . 95 95 . . . . . 711 635 342 263 . . . . . . Highest-Rated Ally 156 | . . . 31 31 . . . 95 95 . . . . . 156 149 37 37 . . . . . . Total Orders 3 | . . . . . . . . . . . . 1 . 2 . . . . . . . . . . RETURN 3 | . . . . . . . . . . . . 1 . 2 . . . . . . . . . . Ally Attacks 295 | . . . 7 14 . . . 14 2 . . . . . 139 46 19 54 . . . . . . Total Damage 6286 | . . . 106 191 . . . 410 . . . . . . 3383 969 367 860 . . . . . . Kills 51 | . . . . 5 . . . 6 . . . . . . 19 10 4 7 . . . . . . Allies Corrupted 1 | . . . . . . . . . . . . . . . 1 . . . . . . . . . Allies Melted . | . . . . . . . . . . . . . . . . . . . . . . . . . Intel | -11 -10 -9 -9 -8 -7 -7 -7 -6 -6 -6 -6 -6 -5 -5 -5 -5 -5 -5 -4 -4 -4 -4 -3 -3 ------- Run | Scr Mat Mat Sto Mat Fac Low Dat Pro Fac Low Low Zio Pro Fac Ext Cet Arc Hub Fac Upp Upp War Pro Res Robot Analysis Total 1 | . . . . . . . . . . . . . . . . . . 1 . . . . . . Derelict Logs Recovered 6 | . . . . . . . . 1 . 1 . 2 . . . . . . . 2 . . . . Drone Launches 3 | . . . . . . . . . . . . 1 . 2 . . . . . . . . . . Drone Recoveries 3 | . . . . . . . . . . . . 1 . 2 . . . . . . . . . . Exploration | -11 -10 -9 -9 -8 -7 -7 -7 -6 -6 -6 -6 -6 -5 -5 -5 -5 -5 -5 -4 -4 -4 -4 -3 -3 ------------- Run | Scr Mat Mat Sto Mat Fac Low Dat Pro Fac Low Low Zio Pro Fac Ext Cet Arc Hub Fac Upp Upp War Pro Res Turns Passed 17140 | 110 837 853 798 1000 909 521 106 737 1359 747 446 951 475 1166 1363 379 368 715 724 490 761 41 559 725 Spaces Moved 10997 | 51 476 409 437 493 509 292 84 545 792 466 318 776 366 815 762 228 221 476 481 417 632 38 385 528 Core . | . . . . . . . . . . . . . . . . . . . . . . . . . Treads 44 | . 44 . . . . . . . . . . . . . . . . . . . . . . . Legs 10523 | 51 6 405 437 493 509 292 84 545 792 466 318 776 366 815 762 228 221 476 481 417 632 38 385 528 Wheels 430 | . 426 4 . . . . . . . . . . . . . . . . . . . . . . Hover . | . . . . . . . . . . . . . . . . . . . . . . . . . Flight . | . . . . . . . . . . . . . . . . . . . . . . . . . Fastest Speed 95 | 120 95 115 126 125 123 125 125 125 120 120 120 120 120 120 120 122 122 122 105 105 105 105 105 107 Average Speed 119 | 120 118 131 126 125 124 125 125 125 124 120 120 120 120 120 120 122 122 122 117 105 105 105 105 109 Slowest Speed 260 | 120 260 210 126 125 125 125 125 125 203 120 120 120 120 120 122 122 122 122 122 105 105 105 107 110 Overloaded Moves . | . . . . . . . . . . . . . . . . . . . . . . . . . Propulsion Burnouts . | . . . . . . . . . . . . . . . . . . . . . . . . . Robots Hopped . | . . . . . . . . . . . . . . . . . . . . . . . . . Cave-ins Triggered . | . . . . . . . . . . . . . . . . . . . . . . . . . Exploration Rate (%) 46 | 5 74 32 49 43 17 25 69 65 16 68 48 84 56 19 86 62 83 52 10 67 73 9 47 9 Regions Visited 24 Branch Regions 16 Pre-discovered Areas 3 | . . . . . . . 1 . . . . 1 . . . . . . . 1 . . . . Known Exits Taken 20 | . . . . 1 1 1 1 1 1 1 1 1 1 1 1 1 1 1 1 1 1 1 1 . Unknown Exits Taken 4 | 1 1 1 1 . . . . . . . . . . . . . . . . . . . . . Scrap Searched 16 | . . . . . . 2 . . . 3 2 5 2 . . . . . . . 1 . 1 . Spaces Dug 76 | . . . . 1 3 1 . . 3 18 2 . 5 6 . . . 5 6 15 3 . 6 2 Terrain Destroyed 576 | . . . . 1 3 12 . . 4 18 2 . 5 11 45 . . 373 14 15 3 . 66 4 Melee 52 | . . . . 1 3 1 . . 3 6 2 . 5 4 . . . 1 6 10 3 . 5 2 Projectile 61 | . . . . . . . . . 1 12 . . . 7 7 . . 11 8 5 . . 8 2 AOE 463 | . . . . . . 11 . . . . . . . . 38 . . 361 . . . . 53 . Terrain Rammed . | . . . . . . . . . . . . . . . . . . . . . . . . . Walls Destroyed . | . . . . . . . . . . . . . . . . . . . . . . . . . Machines Disabled . | . . . . . . . . . . . . . . . . . . . . . . . . . Actions | -11 -10 -9 -9 -8 -7 -7 -7 -6 -6 -6 -6 -6 -5 -5 -5 -5 -5 -5 -4 -4 -4 -4 -3 -3 --------- Run | Scr Mat Mat Sto Mat Fac Low Dat Pro Fac Low Low Zio Pro Fac Ext Cet Arc Hub Fac Upp Upp War Pro Res Total 13754 | 69 619 602 608 781 714 411 84 581 1080 595 366 795 391 936 1124 299 277 564 563 439 721 38 478 619 Wait 1271 | 1 38 55 102 174 144 79 . . 147 82 27 11 17 33 83 30 21 44 22 2 83 . 45 31 Move 10974 | 50 475 408 437 492 508 291 83 544 791 465 317 775 365 814 761 227 220 475 480 416 631 37 384 528 Hop . | . . . . . . . . . . . . . . . . . . . . . . . . . Pick Up 128 | 2 14 15 6 11 3 1 . 8 18 . . 3 1 11 8 5 3 . 7 . . . 2 10 Fast Attach 66 | 1 3 10 2 7 2 . . 1 13 1 4 . . 6 1 4 1 . 2 . . . 1 7 Attach 58 | . 5 5 2 3 2 4 . 4 10 . 1 1 . 3 3 2 . . 6 . . . 3 4 Detach 8 | . 1 4 . . . . . . 2 . . . . . . . 1 . . . . . . . Swap 210 | . 4 7 7 16 13 5 1 4 15 10 6 3 2 21 28 5 6 17 9 5 4 1 10 11 Drop 156 | . 11 24 10 20 2 . . 3 22 2 4 2 1 16 12 9 3 4 3 . . . 3 5 Fire 568 | 15 68 74 40 57 21 30 . 17 56 24 5 . . 16 43 5 3 21 25 5 . . 25 18 Melee 127 | . . . . 1 19 1 . . 6 11 2 . 5 16 . 12 19 2 9 11 3 . 5 5 Ram . | . . . . . . . . . . . . . . . . . . . . . . . . . Kick 3 | . . . 2 . . . . . . . . . . . . . . 1 . . . . . . Crush . | . . . . . . . . . . . . . . . . . . . . . . . . . Escape Stasis . | . . . . . . . . . . . . . . . . . . . . . . . . . Rewire 185 | . . . . . . . . . . . . . . . 185 . . . . . . . . . Trap . | . . . . . . . . . . . . . . . . . . . . . . . . . Miscellaneous . | . . . . . . . . . . . . . . . . . . . . . . . . . Route ------- -11/Scrapyard -10/Materials (discovered 3 exits: *Mat / [*Min x2]) -9/Materials -9/Storage -8/Materials -7/Factory (discovered 2 exits: *Low x2) -7/Lower Caves -7/Data Miner -6/Proximity Caves -6/Factory (discovered 2 exits: *Low x2) -6/Lower Caves -6/Lower Caves -6/Zion -5/Proximity Caves -5/Factory (discovered 5 exits: Fac / Upp x2 / *Ext x2) -5/Extension (discovered 2 exits: *Fac / *Cet) -5/Cetus -5/Archives (discovered 3 exits: *Fac / *Hub x2) -5/Hub_04(d) (discovered 2 exits: *Fac x2) -4/Factory (discovered 2 exits: *Upp x2) -4/Upper Caves -4/Upper Caves (discovered 2 exits: *Res / *War) -4/Warlord -3/Proximity Caves -3/Research History --------- Turn | Location | Event 1 | -11/Scrapyard | Discovered new exit (range 3) 111 | -11/Scrapyard | Entered Materials 143 | -10/Materials | Discovered new exit (range 14) 246 | -10/Materials | Discovered new exit (range 14) 305 | -10/Materials | Build established: Mutant 882 | -10/Materials | Discovered new exit (range 17) 948 | -10/Materials | Entered another Materials area 948 | -9/Materials | Evolved 2 slots: Propulsion x1, Utility x1 1223 | -9/Materials | Discovered new exit (range 15) 1745 | -9/Materials | Repaired Titanium Leg 1801 | -9/Materials | Entered Storage 1874 | -9/Storage | Repaired Titanium Leg 2054 | -9/Storage | Destroyed 7 combat bots 2187 | -9/Storage | Repaired Titanium Leg 2562 | -9/Storage | Discovered new exit (range 15) 2580 | -9/Storage | Met a pair of Derelict thieves 2599 | -9/Storage | Entered Materials 2599 | -8/Materials | Accompanied by 1 ally 2599 | -8/Materials | Evolved 2 slots: Propulsion x1, Utility x1 2901 | -8/Materials | Build established: Scavenger-Mutant 2939 | -8/Materials | Repaired Titanium Leg 2978 | -8/Materials | Repaired Titanium Leg 3238 | -8/Materials | Repaired Titanium Leg 3521 | -8/Materials | Discovered new exit (range 14) 3598 | -8/Materials | Identified exit to Factory 3599 | -8/Materials | Entered Factory 3599 | -7/Factory | Evolved 2 slots: Utility x2 3753 | -7/Factory | Repaired Titanium Leg 3927 | -7/Factory | Identified exit to Lower Caves 4508 | -7/Factory | Entered Lower Caves 4546 | -7/Lower Caves | Attracted the attention of an 0b10 outpost 4577 | -7/Lower Caves | Lost 3 parts (1n2u) 5025 | -7/Lower Caves | A Derelict revealed a hidden shortcut to meet someone special 5028 | -7/Lower Caves | Identified exit to Data Miner 5029 | -7/Lower Caves | Entered Data Miner 5029 | -7/Data Miner | Discovered new exit (range 6) 5036 | -7/Data Miner | Identified exit to Proximity Caves 5053 | -7/Data Miner | Met Data Miner 5078 | -7/Data Miner | Learned location of Section 7 (-2) 5078 | -7/Data Miner | Acquired the access code to Warlord's prototype stash 5103 | -7/Data Miner | Received God Mode back door access code from Data Miner 5135 | -7/Data Miner | Entered Proximity Caves 5149 | -6/Proximity Caves | Escorted by Enhanced Grunt 5519 | -6/Proximity Caves | Learned 4 Factory zone layouts 5780 | -6/Proximity Caves | Lost 3 parts (2u1w) 5857 | -6/Proximity Caves | Discovered new exit (range 12) 5871 | -6/Proximity Caves | Identified exit to Factory 5872 | -6/Proximity Caves | Entered Factory 5872 | -6/Factory | Accompanied by 1 ally 5872 | -6/Factory | Evolved 2 slots: Utility x2 6516 | -6/Factory | Repaired Titanium Leg 6736 | -6/Factory | Lost 4 parts (2n2u) 6805 | -6/Factory | Identified exit to Lower Caves 6844 | -6/Factory | Found Prototype Launcher 6845 | -6/Factory | Identified Rocket Array 7153 | -6/Factory | Incoming investigation squad redirected 7231 | -6/Factory | Entered Lower Caves 7239 | -6/Lower Caves | Learned 4 Factory zone layouts 7604 | -6/Lower Caves | Encountered a Warlord checkpoint 7702 | -6/Lower Caves | Build established: Scavenger-Assassin 7942 | -6/Lower Caves | Discovered new exit (range 5) 7976 | -6/Lower Caves | Identified exit to Lower Caves 7978 | -6/Lower Caves | Entered another Lower Caves area 8245 | -6/Lower Caves | Found Alien Artifact 8245 | -6/Lower Caves | Identified Core Expander 8245 | -6/Lower Caves | Installed Core Expander, added new Weapon slot 8266 | -6/Lower Caves | Encountered a Warlord checkpoint 8381 | -6/Lower Caves | Discovered new exit (range 10) 8408 | -6/Lower Caves | Attracted the attention of an 0b10 checkpoint 8423 | -6/Lower Caves | Identified exit to Zion 8424 | -6/Lower Caves | Entered Zion 8445 | -6/Zion | Given A8's code to call for help 8494 | -6/Zion | Discovered new exit (range 14) 8503 | -6/Zion | Given the Hacking Drone Bay 8503 | -6/Zion | Found Prototype Device 8504 | -6/Zion | Identified Hacking Drone Bay 8567 | -6/Zion | System corruption cleaned by Quarantine Array 8641 | -6/Zion | Acquired unknown access codes intercepted by a Zionite 8707 | -6/Zion | Received a visual enhancement algorithm 8981 | -6/Zion | Learned location of 1 exit from Factory 9374 | -6/Zion | Identified exit to Proximity Caves 9375 | -6/Zion | Entered Proximity Caves 9844 | -5/Proximity Caves | Discovered new exit (range 5) 9849 | -5/Proximity Caves | Identified exit to Factory 9850 | -5/Proximity Caves | Entered Factory 9850 | -5/Factory | Evolved 2 slots: Utility x2 9851 | -5/Factory | Identified exit to Factory 9936 | -5/Factory | Identified exit to Upper Caves 9936 | -5/Factory | Identified exit to Extension 10771 | -5/Factory | Fabricated Machine Analyzer (x1) 10940 | -5/Factory | Fabricated Mni. Smartbomb Launcher? 11016 | -5/Factory | Entered Extension 11112 | -5/Extension | Rescued A7 11695 | -5/Extension | Spotted B-75 Beast 11720 | -5/Extension | Allies destroyed B-75 Beast 11729 | -5/Extension | Spotted B-75 Beast 11737 | -5/Extension | Allies destroyed B-75 Beast 12094 | -5/Extension | Rescued a captive Derelict 12259 | -5/Extension | Rescued a captive Derelict 12260 | -5/Extension | Rescued a captive Derelict 12280 | -5/Extension | Rescued a captive Derelict 12310 | -5/Extension | Discovered exit to Factory (range 10) 12311 | -5/Extension | Discovered new exit (range 6) 12341 | -5/Extension | Identified exit to Cetus 12379 | -5/Extension | Entered Cetus 12379 | -5/Cetus | Accompanied by 18 allies (A7) 12379 | -5/Cetus | 3 allies did not survive the journey 12384 | -5/Cetus | Acquired a Cetus Manufacturing Module code from A7 12393 | -5/Cetus | Build established: Commander-Tank 12395 | -5/Cetus | Spotted Cetus Guard 12395 | -5/Cetus | Spotted Cetus Guard 12397 | -5/Cetus | Spotted Cetus Guard 12399 | -5/Cetus | Spotted Cetus Guard 12408 | -5/Cetus | Allies destroyed Cetus Guard 12410 | -5/Cetus | Allies destroyed Cetus Guard 12411 | -5/Cetus | Allies destroyed Cetus Guard 12435 | -5/Cetus | Cetus Manufacturing Module disabled 12483 | -5/Cetus | Failed to start Cetus Manufacturing Module 12502 | -5/Cetus | Escorted A7 to Cetus Mainframe 12616 | -5/Cetus | Discovered new exit (range 16) 12633 | -5/Cetus | Identified exit to Archives 12709 | -5/Cetus | Destroyed A7 12723 | -5/Cetus | Extracted ID and sensor layout for unrecognized location from A7's data core 12758 | -5/Cetus | Entered Archives 12758 | -5/Archives | Accompanied by 12 allies 12816 | -5/Archives | Discovered new exit (range 16) 12884 | -5/Archives | Discovered exit to Factory (range 16) 13000 | -5/Archives | Discovered new exit (range 14) 13033 | -5/Archives | Unable to access archive contents 13056 | -5/Archives | Identified exit to Hub_04(d) 13126 | -5/Archives | Entered Hub_04(d) 13126 | -5/Hub_04(d) | Accompanied by 9 allies 13220 | -5/Hub_04(d) | Discovered exit to Factory (range 16) 13771 | -5/Hub_04(d) | Discovered exit to Factory (range 16) 13826 | -5/Hub_04(d) | Network Hub disabled 13828 | -5/Hub_04(d) | Network Hub disabled 13834 | -5/Hub_04(d) | Spotted Lightning 13841 | -5/Hub_04(d) | Spotted Lightning 13841 | -5/Hub_04(d) | Entered Factory 13841 | -4/Factory | Evolved 2 slots: Utility x2 13975 | -4/Factory | Identified exit to Upper Caves 13975 | -4/Factory | Central database locked down 14091 | -4/Factory | First assault squad dispatched 14120 | -4/Factory | Incoming assault squad redirected 14133 | -4/Factory | Fabricated Machine Analyzer (x1) 14228 | -4/Factory | Fabricated Exp. Flexi-carbon Leg (x1) 14325 | -4/Factory | Fabricated Exp. Flexi-carbon Leg? 14359 | -4/Factory | Incoming assault squad redirected 14371 | -4/Factory | Lost 3 parts (3n) 14565 | -4/Factory | Entered Upper Caves 14579 | -4/Upper Caves | Learned location of Armory (-3) 14595 | -4/Upper Caves | Learned Research garrison access intel 14795 | -4/Upper Caves | Build established: Scavenger-Assassin 15007 | -4/Upper Caves | Discovered new exit (range 5) 15014 | -4/Upper Caves | Identified exit to Upper Caves 15055 | -4/Upper Caves | Entered another Upper Caves area 15247 | -4/Upper Caves | Discovered new exit (range 5) 15256 | -4/Upper Caves | Identified exit to Research 15683 | -4/Upper Caves | Attracted the attention of an 0b10 checkpoint 15792 | -4/Upper Caves | Discovered new exit (range 10) 15801 | -4/Upper Caves | Identified exit to Warlord 15816 | -4/Upper Caves | Entered Warlord 15847 | -4/Warlord | Discovered new exit (range 9) 15854 | -4/Warlord | Identified exit to Proximity Caves 15857 | -4/Warlord | Entered Proximity Caves 16320 | -3/Proximity Caves | Destroyed 7 combat bots 16409 | -3/Proximity Caves | Discovered exit to Research (range 8) 16416 | -3/Proximity Caves | Entered Research 16416 | -3/Research | Evolved 2 slots: Propulsion x1, Utility x1 16417 | -3/Research | Loaded intel: 2 garrison access locations 16650 | -3/Research | Fabricated Exp. Flexi-carbon Leg? 16820 | -3/Research | Local fabrication network quarantined 16857 | -3/Research | Fabricated Exp. Flexi-carbon Leg (x1) 16916 | -3/Research | First assault squad dispatched 17055 | -3/Research | Incoming assault squad redirected 17118 | -3/Research | Lost 6 parts (3u3w) 17141 | -3/Research | Self-destructed Last Messages --------------- 17091_ Acquired 76 matter. 17093_ Acquired 82 matter. 17095_ Acquired Flexi-carbon Leg. 17099_ Acquired Lgt. Antimatter Reactor. 17105_ Dropped Flexi-carbon Leg. 17108_ Acquired Adv. Force Field. 17112_ Z9 HR5 JKXLX KV>JTVLVU 17114_ Acquired Segregator. 17115_ Dropped Falx. 17117_ Acquired Flexi-carbon Leg. 17121_ Acquired 100 matter. 17122_ Penetrated by Slug. 17122_ Slug penetrates Wall. 17124_ Penetrated by Slug. 17132_ Particle Reactor lost to overload. 17132_ S-43 Plague Hvy. Machine Gun blown off. 17132_ S-43 Plague Lgt. Antimatter Reactor blown off. 17132_ S-43 Plague Xenon Bombardment Thruster blown off. 17135_ KE Penetrator destroyed. 17141_ Centrium Medium Armor Plating destroyed. Map ----- +----------------------------------------------------+ | ????????????## """ # | | ????????????#############+##### | | ???????????? ####### ##### | | ???????????????????????## ##??? | | ???????????????????????## ##??? | | ??????????? #????## ##??? | | ???????????##+##+##????## ##??? | | ############# ######## ###?? | | ############# ########+###?? | | # #### # ##?? | | # # # ##?? | | # # # """##?? | | # # # Y"##?? | | # """ + + """##?? | | # """ # # ##?? | | # """ # # #""" | | # # # #"F" | | # # ###########"?? | | ########+# ###########""" | | ######## # ##?????????""" | | ######## # ##???????????? | | ######## # #### ????????? | | #! *# #### ??????? | | # / #s% ?????? | | # !!*s==[ ?????? | | # =@# = ?????? | | # =!#! ##### ??????? | | # # ##### ????????? | | ######## ##????????????? | | ######## ##????????????? | | ??????## ##????????????? | | ??????## ##????????????? | | ??????## ##????????????? | | ??????## ##????????????? | | ??????## ##????????????? | | ??????## ## ???????????? | | ??????## ##???????????? | | ??????## ##???????????? | | ??????## ##???????????? | | ???????? ##???????????? | | ???????? ##???????????? | | ???????? ##???????????? | | ???????? ##???????????? | | ???????? ?????????????????? | | ???????? ???????????????????? | | ??????????????????????????????? | | ??????????????????????????????? | | ??????????????????????????????? | | ??????????????????????????????? | | ??????????????????????????????? | +----------------------------------------------------+ Best States ------------- Heat Dissipation 80 Energy Generation 25 Energy Capacity 650 Matter Stores 500 Matter Capacity 500 Sight Range 18 Robot Scan Range 16 Terrain Scan Range 16 Terrain Scan Density 10 Jamming Range 12 Armor Coverage 450 Resistance: KI 25 Resistance: TH 25 Resistance: EM 25 Weapon Shielding 66 Weapon Cycling 20 Phase Shifting 10 Evasion (%) 65 Core Analysis 10 Recoil Reduction 2 Matter Filtering 30 Energy Filtering 50 Offensive Hacking 38 Defensive Hacking 22 Item Schematics ----------------- Lrg. Storage Unit | -10/Materials | Hacked Titanium Leg | -9/Materials | Scanalyzed Sensor Array | -8/Materials | Scanalyzed Imp. Sensor Array | -8/Materials | Scanalyzed Machine Analyzer | -8/Materials | Scanalyzed Structural Scanner | -8/Materials | Scanalyzed Combat Drone Bay | -7/Data Miner | Free Lgt. Regenerative Plating | -7/Data Miner | Free Exp. Flexi-carbon Leg | -7/Data Miner | Free Triangulator | -7/Data Miner | Free Exp. Targeting Computer | -7/Data Miner | Free Tactical Coordination Suite | -7/Data Miner | Free Mni. Smartbomb Launcher | -7/Data Miner | Free Kinetic Spear | -7/Data Miner | Free Beamcaster | -6/Zion | Free Battle Rifle | -6/Zion | Free Barrage Gun | -6/Zion | Free Battle Cannon | -6/Zion | Free Enh. Flamer | -6/Zion | Free Plasma Flamer | -6/Zion | Free Ripper | -6/Zion | Free Imp. Titanium Leg | -5/Hub_04(d) | Hacked Adv. Hacking Suite | -4/Factory | Hacked Robot Schematics ------------------ S-27 Virus | -7/Data Miner | Free G-50 Soldier | -7/Data Miner | Free L-41 Fighter | -7/Data Miner | Free X-72 Disruptor | -7/Data Miner | Free H-66 Slayer | -7/Data Miner | Free P-70 Sage | -7/Data Miner | Free I-36 Angel | -7/Data Miner | Free I-47 Archangel | -7/Data Miner | Free Fabricated ------------ Machine Analyzer | x1 | -5/Factory Mni. Smartbomb Launcher | x1 | -5/Factory Machine Analyzer | x1 | -4/Factory Exp. Flexi-carbon Leg | x1 | -4/Factory Exp. Flexi-carbon Leg | x1 | -4/Factory Exp. Flexi-carbon Leg | x1 | -3/Research Exp. Flexi-carbon Leg | x1 | -3/Research Alien Tech Used ----------------- Core Expander Achievements -------------- None Challenges ------------ None Game ------ Seed ShadingWeaponImmobilizer Manual? 0 Play Time 05:56:11 Cumulative 1054.0 hours Start 2021.05.18 @ 20:02:26 End 2021.05.22 @ 07:20:31 Sessions 23 Manual Loads 0 Difficulty Rogue Special Mode None Game No. 296 Rogue 296 Adventurer 0 Explorer 0 Win Type - Total 38 Types 25/5/5/3/0/0/0/0/0 Lore% 81 Gallery% 86 Achievement% 73 Wizard Run 0 Options --------- ASCII 0 Keyboard 1 Movement Numpad Keybinds 0 Fullscreen 1 Font 24/Smallcaps Map View 76x50 Tactical HUD 1 Map Filters NONE Filters NONE Steam 1 RUN: e2d73787-3514-4b79-8e99-72b17a26181e